[Event "*** Titled Tuesday Blitz"]
[Site "Chess.com"]
[Date "2018.07.03"]
[Round "7"]
[White "RiskyDecision"]
[Black "nurmiTV"]
[Result "1-0"]
[WhiteElo "2509"]
[BlackElo "2501"]
[TimeControl "180+2"]
[EndTime "14:31:56 PDT"]
[Termination "RiskyDecision won by resignation"]

1. d4 {[%clk 0:03:01.3]} 1... Nf6 {[%clk 0:02:59.7]} 2. Bg5 {[%clk 0:03:00.8]}
2... Ne4 {[%clk 0:03:00.5]} 3. Bf4 {[%clk 0:02:59.4]} 3... d5 {[%clk 0:03:02]}
4. e3 {[%clk 0:02:54.9]} 4... c5 {[%clk 0:02:59.6]} 5. Bd3 {[%clk 0:02:54]} 5...
Nf6 {[%clk 0:02:56.5]} 6. c3 {[%clk 0:02:51.8]} 6... Nc6 {[%clk 0:02:57.5]} 7.
Nd2 {[%clk 0:02:50.5]} 7... Qb6 {[%clk 0:02:57.7]} 8. Rb1 {[%clk 0:02:37.7]}
8... Bg4 {[%clk 0:02:52.2]} 9. Qa4 {[%clk 0:02:30.8]} 9... e6 {[%clk 0:02:46.4]}
10. Ngf3 {[%clk 0:02:25.9]} 10... Be7 {[%clk 0:02:32.5]} 11. Bg5 {[%clk
0:02:10.8]} 11... Bh5 {[%clk 0:02:21.4]} 12. Ne5 {[%clk 0:02:01.8]} 12... h6
{[%clk 0:01:42.7]} 13. Bh4 {[%clk 0:01:56.4]} 13... Nd7 {[%clk 0:01:25.9]} 14.
Nxd7 {[%clk 0:01:38.5]} 14... Kxd7 {[%clk 0:01:27.8]} 15. Bxe7 {[%clk
0:01:31.7]} 15... Kxe7 {[%clk 0:01:27.9]} 16. dxc5 {[%clk 0:01:31.3]} 16... Qxc5
{[%clk 0:01:25.2]} 17. Qh4+ {[%clk 0:01:31.1]} 17... g5 {[%clk 0:01:16.8]} 18.
Qxh5 {[%clk 0:01:32.1]} 18... Ne5 {[%clk 0:01:07.4]} 19. Qe2 {[%clk 0:01:30.1]}
19... f5 {[%clk 0:01:03.4]} 20. O-O {[%clk 0:01:23.8]} 20... g4 {[%clk
0:01:03.2]} 21. c4 {[%clk 0:01:14.5]} 21... h5 {[%clk 0:00:59.7]} 22. cxd5
{[%clk 0:01:06.9]} 22... Qxd5 {[%clk 0:01:00.6]} 23. Bc4 {[%clk 0:01:07.8]}
23... Qa5 {[%clk 0:00:48.7]} 24. b4 {[%clk 0:01:02.9]} 24... Qc7 {[%clk
0:00:43.7]} 25. Bb3 {[%clk 0:00:58.7]} 25... Rac8 {[%clk 0:00:37.7]} 26. f4
{[%clk 0:00:42.9]} 26... gxf3 {[%clk 0:00:35.5]} 27. gxf3 {[%clk 0:00:41.8]}
27... Rhg8+ {[%clk 0:00:27.2]} 28. Kh1 {[%clk 0:00:42.7]} 28... Rcd8 {[%clk
0:00:28.5]} 29. Rg1 {[%clk 0:00:35.1]} 29... Qc6 {[%clk 0:00:15.8]} 30. Rxg8
{[%clk 0:00:32.3]} 30... Rxg8 {[%clk 0:00:17.7]} 31. Rg1 {[%clk 0:00:32.2]}
31... Rd8 {[%clk 0:00:18.7]} 32. Qg2 {[%clk 0:00:24.6]} 32... Rd7 {[%clk
0:00:14.2]} 33. Qg7+ {[%clk 0:00:21.8]} 33... Kd6 {[%clk 0:00:14.6]} 34. Qg3
{[%clk 0:00:21.2]} 34... b5 {[%clk 0:00:13.2]} 35. Rd1 {[%clk 0:00:20]} 35... f4
{[%clk 0:00:06]} 36. Qxf4 {[%clk 0:00:20.2]} 36... Rf7 {[%clk 0:00:06.6]} 37.
Ne4+ {[%clk 0:00:20.2]} 37... Ke7 {[%clk 0:00:06.6]} 38. Qxe5 {[%clk 0:00:21.3]}
38... Rxf3 {[%clk 0:00:07.4]} 39. Rg1 {[%clk 0:00:21.1]} 39... Rf5 {[%clk
0:00:05.7]} 40. Qg7+ {[%clk 0:00:19]} 40... Kd8 {[%clk 0:00:06.2]} 41. Qg8+
{[%clk 0:00:19.1]} 41... Kc7 {[%clk 0:00:07.4]} 42. Qxe6 {[%clk 0:00:18.4]}
42... Qxe6 {[%clk 0:00:03.4]} 43. Bxe6 {[%clk 0:00:18.7]} 43... Re5 {[%clk
0:00:05.3]} 44. Nc5 {[%clk 0:00:19.4]} 44... Rxe3 {[%clk 0:00:07.2]} 45. Rg7+
{[%clk 0:00:19.1]} 45... Kd6 {[%clk 0:00:09.1]} 46. Rd7+ {[%clk 0:00:19.5]}
46... Ke5 {[%clk 0:00:11]} 47. Rd5+ {[%clk 0:00:18.6]} 47... Kf4 {[%clk
0:00:12]} 48. Rf5+ {[%clk 0:00:19.4]} 48... Kg4 {[%clk 0:00:12.2]} 49. Re5+
{[%clk 0:00:20.2]} 1-0

[Event "*** Titled Tuesday Blitz"]
[Site "Chess.com"]
[Date "2018.07.03"]
[Round "7"]
[White "Karina_Oparina"]
[Black "Keures"]
[Result "0-1"]
[WhiteElo "2188"]
[BlackElo "2143"]
[TimeControl "180+2"]
[EndTime "14:32:15 PDT"]
[Termination "Keures won on time"]

1. Nf3 {[%clk 0:03:00.4]} 1... d5 {[%clk 0:03:00]} 2. g3 {[%clk 0:03:00.2]} 2...
g6 {[%clk 0:03:00.1]} 3. Bg2 {[%clk 0:03:01.5]} 3... Bg7 {[%clk 0:03:01.4]} 4.
d4 {[%clk 0:03:02.1]} 4... Nf6 {[%clk 0:03:00.9]} 5. O-O {[%clk 0:03:03.5]} 5...
O-O {[%clk 0:03:01.6]} 6. c4 {[%clk 0:03:05]} 6... dxc4 {[%clk 0:03:02.7]} 7.
Na3 {[%clk 0:03:05.6]} 7... c3 {[%clk 0:03:04]} 8. bxc3 {[%clk 0:03:05.9]} 8...
Bg4 {[%clk 0:03:04.9]} 9. e3 {[%clk 0:03:05.9]} 9... Nbd7 {[%clk 0:03:03.4]} 10.
Qe2 {[%clk 0:03:01.3]} 10... e5 {[%clk 0:03:02.6]} 11. h3 {[%clk 0:03:01.5]}
11... Bxf3 {[%clk 0:02:59.9]} 12. Bxf3 {[%clk 0:03:01.4]} 12... e4 {[%clk
0:02:58.9]} 13. Bg2 {[%clk 0:03:01.8]} 13... Re8 {[%clk 0:02:45.8]} 14. Bb2
{[%clk 0:02:59.2]} 14... Nd5 {[%clk 0:02:44.5]} 15. c4 {[%clk 0:02:58.5]} 15...
Nb4 {[%clk 0:02:45.3]} 16. Bc3 {[%clk 0:02:52]} 16... Nd3 {[%clk 0:02:44.2]} 17.
Bxe4 {[%clk 0:02:51.2]} 17... Nxf2 {[%clk 0:02:39]} 18. Bxb7 {[%clk 0:02:26.3]}
18... Nxh3+ {[%clk 0:02:30.2]} 19. Kh2 {[%clk 0:02:26.5]} 19... Rb8 {[%clk
0:02:28.5]} 20. Bd5 {[%clk 0:02:16]} 20... Ng5 {[%clk 0:02:27.2]} 21. Qg4 {[%clk
0:02:08.8]} 21... h5 {[%clk 0:02:18.2]} 22. Qf4 {[%clk 0:02:02.9]} 22... Nf6
{[%clk 0:02:06.8]} 23. Nc2 {[%clk 0:01:21.3]} 23... Nxd5 {[%clk 0:01:16.1]} 24.
cxd5 {[%clk 0:01:20.9]} 24... Qxd5 {[%clk 0:01:17.1]} 25. Nb4 {[%clk 0:01:18.3]}
25... Qc4 {[%clk 0:01:05.7]} 26. Rac1 {[%clk 0:01:08.7]} 26... Qe2+ {[%clk
0:00:59.4]} 27. Rf2 {[%clk 0:01:04.2]} 27... Qxe3 {[%clk 0:01:00]} 28. Qxe3
{[%clk 0:00:54.9]} 28... Rxe3 {[%clk 0:01:01.9]} 29. Nd5 {[%clk 0:00:52.6]}
29... Re6 {[%clk 0:00:51.4]} 30. Nxc7 {[%clk 0:00:48.9]} 30... Rc6 {[%clk
0:00:52.3]} 31. Nd5 {[%clk 0:00:49.1]} 31... Kh7 {[%clk 0:00:43.9]} 32. Bd2
{[%clk 0:00:32.6]} 32... Rxc1 {[%clk 0:00:28.6]} 33. Bxc1 {[%clk 0:00:33]} 33...
Ne6 {[%clk 0:00:28.6]} 34. Rxf7 {[%clk 0:00:28.4]} 34... Nxd4 {[%clk 0:00:27.4]}
35. Bg5 {[%clk 0:00:21.4]} 35... Rf8 {[%clk 0:00:21.2]} 36. Rxa7 {[%clk
0:00:16.5]} 36... Nf3+ {[%clk 0:00:21.8]} 37. Kg2 {[%clk 0:00:15.8]} 37... Nxg5
{[%clk 0:00:23.7]} 38. a4 {[%clk 0:00:10.3]} 38... Rf5 {[%clk 0:00:24.4]} 39.
Nf4 {[%clk 0:00:09.4]} 39... Rc5 {[%clk 0:00:22.5]} 40. a5 {[%clk 0:00:08.4]}
40... Kh6 {[%clk 0:00:23.8]} 41. Ra6 {[%clk 0:00:07.2]} 41... Kh7 {[%clk
0:00:15.3]} 42. Ra7 {[%clk 0:00:06.5]} 42... Re5 {[%clk 0:00:14.5]} 43. a6
{[%clk 0:00:05.6]} 43... Ne6 {[%clk 0:00:15.6]} 0-1

[Event "*** Titled Tuesday Blitz"]
[Site "Chess.com"]
[Date "2018.07.03"]
[Round "7"]
[White "pedromartinez91"]
[Black "Passacaglia23"]
[Result "0-1"]
[WhiteElo "2436"]
[BlackElo "2325"]
[TimeControl "180+2"]
[EndTime "14:32:19 PDT"]
[Termination "Passacaglia23 won by resignation"]

1. Nf3 {[%clk 0:03:01.9]} 1... d5 {[%clk 0:03:00.8]} 2. d4 {[%clk 0:03:02.5]}
2... Nf6 {[%clk 0:03:01.3]} 3. c4 {[%clk 0:03:03.2]} 3... c6 {[%clk 0:03:02.6]}
4. cxd5 {[%clk 0:03:03.4]} 4... cxd5 {[%clk 0:03:03.5]} 5. Nc3 {[%clk
0:03:04.9]} 5... Nc6 {[%clk 0:03:05]} 6. Bf4 {[%clk 0:03:05.4]} 6... a6 {[%clk
0:03:05.8]} 7. e3 {[%clk 0:03:05.7]} 7... e6 {[%clk 0:03:05.4]} 8. Bd3 {[%clk
0:03:05.3]} 8... Bd6 {[%clk 0:03:06.4]} 9. Bg3 {[%clk 0:03:04.4]} 9... O-O
{[%clk 0:03:05.2]} 10. Rc1 {[%clk 0:03:04.3]} 10... Ne8 {[%clk 0:02:09.3]} 11.
O-O {[%clk 0:02:58]} 11... f5 {[%clk 0:01:54.4]} 12. Ne5 {[%clk 0:02:49.7]}
12... Nxe5 {[%clk 0:01:30.1]} 13. Bxe5 {[%clk 0:02:51.6]} 13... b5 {[%clk
0:01:28.2]} 14. Qd2 {[%clk 0:02:36.9]} 14... Bb7 {[%clk 0:01:25.9]} 15. a4
{[%clk 0:02:37.1]} 15... b4 {[%clk 0:01:26.1]} 16. Ne2 {[%clk 0:02:38]} 16... a5
{[%clk 0:00:57.4]} 17. Bb5 {[%clk 0:02:34.8]} 17... g5 {[%clk 0:00:35]} 18. Bxe8
{[%clk 0:02:07.4]} 18... Rxe8 {[%clk 0:00:35.5]} 19. Bxd6 {[%clk 0:02:08.5]}
19... Qxd6 {[%clk 0:00:36.1]} 20. Rc5 {[%clk 0:02:10.1]} 20... Rac8 {[%clk
0:00:26.8]} 21. Rfc1 {[%clk 0:02:05.7]} 21... Rxc5 {[%clk 0:00:20.2]} 22. Rxc5
{[%clk 0:02:07.6]} 22... Rc8 {[%clk 0:00:21]} 23. Rxa5 {[%clk 0:01:58.2]} 23...
Rc4 {[%clk 0:00:22]} 24. b3 {[%clk 0:01:53.1]} 24... Qc7 {[%clk 0:00:20.6]} 25.
Rc5 {[%clk 0:00:26.5]} 25... Rxc5 {[%clk 0:00:19.9]} 26. dxc5 {[%clk 0:00:28.4]}
26... Qxc5 {[%clk 0:00:21.2]} 27. h4 {[%clk 0:00:30.3]} 27... gxh4 {[%clk
0:00:20.9]} 28. Nd4 {[%clk 0:00:30.7]} 28... Bc8 {[%clk 0:00:20.2]} 29. Qc2
{[%clk 0:00:20.9]} 29... Qc3 {[%clk 0:00:16.1]} 30. Qxc3 {[%clk 0:00:17.8]}
30... bxc3 {[%clk 0:00:18]} 31. f4 {[%clk 0:00:18.1]} 31... Kf7 {[%clk
0:00:16.4]} 32. Kf2 {[%clk 0:00:19.2]} 32... Kf6 {[%clk 0:00:17.6]} 33. Ke2
{[%clk 0:00:20.3]} 33... e5 {[%clk 0:00:19]} 34. fxe5+ {[%clk 0:00:20.3]} 34...
Kxe5 {[%clk 0:00:20.9]} 35. Kd3 {[%clk 0:00:21.9]} 35... f4 {[%clk 0:00:17.6]}
36. Nf3+ {[%clk 0:00:21.1]} 36... Kf5 {[%clk 0:00:18.7]} 37. exf4 {[%clk
0:00:22.2]} 37... Kxf4 {[%clk 0:00:09.5]} 38. Nxh4 {[%clk 0:00:22.5]} 38... d4
{[%clk 0:00:06]} 39. Nf3 {[%clk 0:00:17.4]} 39... Bf5+ {[%clk 0:00:07.1]} 40.
Ke2 {[%clk 0:00:17.4]} 40... d3+ {[%clk 0:00:07.3]} 41. Kd1 {[%clk 0:00:18.9]}
41... Ke3 {[%clk 0:00:07.7]} 42. a5 {[%clk 0:00:11]} 42... Bg4 {[%clk 0:00:08]}
43. a6 {[%clk 0:00:11.6]} 43... d2 {[%clk 0:00:05.3]} 44. Kc2 {[%clk 0:00:07.5]}
44... Bxf3 {[%clk 0:00:03.7]} 45. gxf3 {[%clk 0:00:09.4]} 45... Ke2 {[%clk
0:00:05.3]} 46. a7 {[%clk 0:00:10.7]} 46... d1=Q+ {[%clk 0:00:06.9]} 47. Kxc3
{[%clk 0:00:12.6]} 47... Qa1+ {[%clk 0:00:08.2]} 48. Kb4 {[%clk 0:00:13.6]}
48... Qxa7 {[%clk 0:00:09.6]} 0-1

[Event "*** Titled Tuesday Blitz"]
[Site "Chess.com"]
[Date "2018.07.03"]
[Round "7"]
[White "penguingm1"]
[Black "mukhin1"]
[Result "0-1"]
[WhiteElo "2778"]
[BlackElo "2935"]
[TimeControl "180+2"]
[EndTime "14:32:21 PDT"]
[Termination "mukhin1 won by resignation"]

1. d4 {[%clk 0:03:01.9]} 1... Nf6 {[%clk 0:02:58.7]} 2. c4 {[%clk 0:03:03]} 2...
g6 {[%clk 0:02:59]} 3. f3 {[%clk 0:03:04.2]} 3... d5 {[%clk 0:02:57.1]} 4. cxd5
{[%clk 0:03:05.4]} 4... Nxd5 {[%clk 0:02:59]} 5. e4 {[%clk 0:03:07]} 5... Nb6
{[%clk 0:03:00.9]} 6. Nc3 {[%clk 0:03:08.5]} 6... Bg7 {[%clk 0:02:57.3]} 7. Be3
{[%clk 0:03:09.2]} 7... O-O {[%clk 0:02:57.7]} 8. Qd2 {[%clk 0:03:10.5]} 8... e5
{[%clk 0:02:57.5]} 9. d5 {[%clk 0:03:08.6]} 9... c6 {[%clk 0:02:59]} 10. h4
{[%clk 0:03:07.5]} 10... cxd5 {[%clk 0:02:58.6]} 11. exd5 {[%clk 0:03:09.4]}
11... Na6 {[%clk 0:02:58.7]} 12. Rd1 {[%clk 0:02:30.2]} 12... f5 {[%clk
0:02:39.6]} 13. h5 {[%clk 0:02:26.7]} 13... f4 {[%clk 0:02:28]} 14. Bf2 {[%clk
0:02:16]} 14... Bf5 {[%clk 0:02:27.9]} 15. hxg6 {[%clk 0:02:11.6]} 15... Bxg6
{[%clk 0:02:29.8]} 16. Bd3 {[%clk 0:01:53]} 16... Qd6 {[%clk 0:02:27.5]} 17.
Nge2 {[%clk 0:01:12.6]} 17... Nb4 {[%clk 0:02:25.4]} 18. Bxg6 {[%clk 0:01:10.5]}
18... Qxg6 {[%clk 0:02:26.7]} 19. Kf1 {[%clk 0:01:04.1]} 19... Nc4 {[%clk
0:02:25.9]} 20. Qc1 {[%clk 0:00:59.5]} 20... Nd3 {[%clk 0:02:22.5]} 21. Qb1
{[%clk 0:00:45.5]} 21... Ndxb2 {[%clk 0:02:20.2]} 22. Qxg6 {[%clk 0:00:37.3]}
22... hxg6 {[%clk 0:02:22.1]} 23. Rc1 {[%clk 0:00:32.4]} 23... Rac8 {[%clk
0:02:23.3]} 24. Kg1 {[%clk 0:00:22.7]} 24... Nd3 {[%clk 0:02:23.3]} 25. Rd1
{[%clk 0:00:18.9]} 25... Nxf2 {[%clk 0:02:19.6]} 26. Kxf2 {[%clk 0:00:20.1]}
26... Rfd8 {[%clk 0:02:21.5]} 27. Rb1 {[%clk 0:00:17.6]} 27... Nd6 {[%clk
0:02:17.5]} 28. Rhd1 {[%clk 0:00:16.9]} 28... b6 {[%clk 0:02:16.1]} 29. Rbc1
{[%clk 0:00:17.7]} 29... Bf8 {[%clk 0:02:10.8]} 30. g3 {[%clk 0:00:12.4]} 30...
Nf5 {[%clk 0:02:08.3]} 31. Ne4 {[%clk 0:00:13.3]} 31... fxg3+ {[%clk 0:02:06.1]}
32. N2xg3 {[%clk 0:00:14.5]} 32... Nd4 {[%clk 0:01:59.4]} 33. Rxc8 {[%clk
0:00:11.2]} 33... Rxc8 {[%clk 0:02:01.3]} 34. f4 {[%clk 0:00:07.1]} 34... Rc2+
{[%clk 0:01:56.9]} 35. Kf1 {[%clk 0:00:08.3]} 35... Nf3 {[%clk 0:01:53.5]} 36.
fxe5 {[%clk 0:00:06.5]} 36... Nxe5 {[%clk 0:01:51.9]} 37. d6 {[%clk 0:00:07.6]}
37... Nd7 {[%clk 0:01:52.7]} 38. a3 {[%clk 0:00:07.4]} 38... Bh6 {[%clk
0:01:51]} 39. Rd3 {[%clk 0:00:07.6]} 39... Bf4 {[%clk 0:01:51.3]} 40. Rf3 {[%clk
0:00:08.3]} 40... g5 {[%clk 0:01:47.6]} 41. Nh5 {[%clk 0:00:08.8]} 41... Rc4
{[%clk 0:01:48.5]} 42. Nxf4 {[%clk 0:00:05]} 42... Rxe4 {[%clk 0:01:48.9]} 43.
Nd5 {[%clk 0:00:05.8]} 43... Re6 {[%clk 0:01:42.9]} 44. Rf5 {[%clk 0:00:06.1]}
44... Rxd6 {[%clk 0:01:40.3]} 45. Rxg5+ {[%clk 0:00:07.4]} 45... Kf7 {[%clk
0:01:42.1]} 46. Ke2 {[%clk 0:00:07.7]} 46... Nc5 {[%clk 0:01:40.3]} 47. Ne3
{[%clk 0:00:06.7]} 47... Re6 {[%clk 0:01:40.5]} 48. Rf5+ {[%clk 0:00:06.7]}
48... Ke7 {[%clk 0:01:41.8]} 49. Kd2 {[%clk 0:00:06.9]} 49... Kd6 {[%clk
0:01:40.5]} 50. Nc2 {[%clk 0:00:04.1]} 50... Re7 {[%clk 0:01:32.4]} 51. Kc3
{[%clk 0:00:04.7]} 51... Rc7 {[%clk 0:01:32.6]} 52. Nd4 {[%clk 0:00:04.2]} 52...
Ne6+ {[%clk 0:01:31.5]} 53. Kd3 {[%clk 0:00:05.5]} 53... Nxd4 {[%clk 0:01:32.4]}
54. Kxd4 {[%clk 0:00:06.9]} 54... Rc5 {[%clk 0:01:34.3]} 55. Rf7 {[%clk
0:00:07.3]} 55... Ra5 {[%clk 0:01:35.5]} 56. Rf6+ {[%clk 0:00:06.4]} 56... Kc7
{[%clk 0:01:34.2]} 57. Rf3 {[%clk 0:00:07.7]} 57... Ra4+ {[%clk 0:01:32.5]} 58.
Kd5 {[%clk 0:00:09]} 58... Kb7 {[%clk 0:01:33.7]} 59. Re3 {[%clk 0:00:09.5]}
59... Ka6 {[%clk 0:01:34.4]} 60. Kc6 {[%clk 0:00:10.5]} 60... Rc4+ {[%clk
0:01:35.6]} 61. Kd5 {[%clk 0:00:11.5]} 61... Rc5+ {[%clk 0:01:37]} 62. Kd4
{[%clk 0:00:11.7]} 62... Ka5 {[%clk 0:01:38.9]} 63. Re7 {[%clk 0:00:11.7]} 63...
a6 {[%clk 0:01:39.5]} 64. Re6 {[%clk 0:00:11.6]} 64... Rc1 {[%clk 0:01:39.4]}
65. Re5+ {[%clk 0:00:06.8]} 65... b5 {[%clk 0:01:38.8]} 66. Re3 {[%clk
0:00:07.6]} 66... Ka4 {[%clk 0:01:39.2]} 67. Rf3 {[%clk 0:00:06.3]} 67... a5
{[%clk 0:01:40.1]} 68. Kd5 {[%clk 0:00:05.5]} 68... b4 {[%clk 0:01:40.6]} 69.
axb4 {[%clk 0:00:05.9]} 69... axb4 {[%clk 0:01:42.5]} 0-1

[Event "*** Titled Tuesday Blitz"]
[Site "Chess.com"]
[Date "2018.07.03"]
[Round "7"]
[White "2Tilted"]
[Black "canwedoit"]
[Result "0-1"]
[WhiteElo "2298"]
[BlackElo "2511"]
[TimeControl "180+2"]
[EndTime "14:32:36 PDT"]
[Termination "canwedoit won by resignation"]

1. d4 {[%clk 0:03:01.9]} 1... Nf6 {[%clk 0:02:59.6]} 2. Nf3 {[%clk 0:03:02.6]}
2... d5 {[%clk 0:02:58.2]} 3. c4 {[%clk 0:03:03.2]} 3... c6 {[%clk 0:02:59]} 4.
e3 {[%clk 0:03:03.7]} 4... Bf5 {[%clk 0:02:59.4]} 5. Nc3 {[%clk 0:03:03.5]} 5...
e6 {[%clk 0:02:58.5]} 6. Nh4 {[%clk 0:03:04.2]} 6... Be4 {[%clk 0:02:59.9]} 7.
f3 {[%clk 0:02:58.1]} 7... Bg6 {[%clk 0:03:00.7]} 8. Qb3 {[%clk 0:02:57.1]} 8...
Qb6 {[%clk 0:02:58]} 9. Nxg6 {[%clk 0:02:55.3]} 9... hxg6 {[%clk 0:02:58.7]} 10.
c5 {[%clk 0:02:53.9]} 10... Qc7 {[%clk 0:02:59.3]} 11. g3 {[%clk 0:02:47.6]}
11... Nbd7 {[%clk 0:02:59.7]} 12. Bd2 {[%clk 0:02:40.9]} 12... b6 {[%clk
0:02:58.3]} 13. cxb6 {[%clk 0:02:39]} 13... axb6 {[%clk 0:03:00.2]} 14. O-O-O
{[%clk 0:02:31.4]} 14... b5 {[%clk 0:02:54.6]} 15. Kb1 {[%clk 0:02:29.4]} 15...
Nb6 {[%clk 0:02:51.8]} 16. e4 {[%clk 0:02:19.6]} 16... Nc4 {[%clk 0:02:49.1]}
17. Bf4 {[%clk 0:02:19.4]} 17... Qa5 {[%clk 0:02:44.4]} 18. exd5 {[%clk
0:02:17.7]} 18... exd5 {[%clk 0:02:44.7]} 19. Bd3 {[%clk 0:02:09.2]} 19... Bd6
{[%clk 0:02:30.5]} 20. Rhe1+ {[%clk 0:02:07.1]} 20... Kd7 {[%clk 0:02:26.3]} 21.
Bxd6 {[%clk 0:01:55.9]} 21... Nxd6 {[%clk 0:02:24.3]} 22. h4 {[%clk 0:01:53.5]}
22... Rhe8 {[%clk 0:02:22.9]} 23. a3 {[%clk 0:01:46.4]} 23... Nc4 {[%clk
0:02:23.2]} 24. Bxc4 {[%clk 0:01:37.5]} 24... bxc4 {[%clk 0:02:13.4]} 25. Qb7+
{[%clk 0:01:37.5]} 25... Qc7 {[%clk 0:02:13.7]} 26. Qxc7+ {[%clk 0:01:34.6]}
26... Kxc7 {[%clk 0:02:15.6]} 27. Kc2 {[%clk 0:01:31.9]} 27... Nh5 {[%clk
0:02:06.4]} 28. Ne2 {[%clk 0:01:30]} 28... Re3 {[%clk 0:02:05.2]} 29. g4 {[%clk
0:01:26]} 29... Nf6 {[%clk 0:02:03.4]} 30. Ng1 {[%clk 0:01:25.1]} 30... Rae8
{[%clk 0:02:03.3]} 31. Rxe3 {[%clk 0:01:20.6]} 31... Rxe3 {[%clk 0:02:05.2]} 32.
Kd2 {[%clk 0:01:21.6]} 32... Rb3 {[%clk 0:02:02.2]} 33. Kc2 {[%clk 0:01:22.8]}
33... Kd6 {[%clk 0:01:45.4]} 34. Re1 {[%clk 0:01:20.8]} 34... Rd3 {[%clk
0:01:40]} 35. Rd1 {[%clk 0:01:14.3]} 35... Rxd1 {[%clk 0:01:33]} 36. Kxd1 {[%clk
0:01:15.3]} 36... c5 {[%clk 0:01:31.7]} 37. Ne2 {[%clk 0:01:13.3]} 37... Nd7
{[%clk 0:01:27.1]} 38. Kd2 {[%clk 0:01:10.7]} 38... Nb6 {[%clk 0:01:26.2]} 39.
dxc5+ {[%clk 0:01:05.3]} 39... Kxc5 {[%clk 0:01:27.2]} 40. Nc3 {[%clk
0:01:06.6]} 40... f5 {[%clk 0:01:25.7]} 41. Ne2 {[%clk 0:01:01.3]} 41... Nd7
{[%clk 0:01:22.2]} 42. Nf4 {[%clk 0:00:52.1]} 42... Ne5 {[%clk 0:01:22.5]} 43.
gxf5 {[%clk 0:00:45.6]} 43... gxf5 {[%clk 0:01:23.2]} 44. Ke2 {[%clk 0:00:43.2]}
44... g6 {[%clk 0:01:03.4]} 45. Ne6+ {[%clk 0:00:41.7]} 45... Kd6 {[%clk
0:01:03.7]} 46. Nd4 {[%clk 0:00:42.7]} 46... Nd3 {[%clk 0:01:02.8]} 47. b4
{[%clk 0:00:34.6]} 47... Nb2 {[%clk 0:00:45.9]} 48. Kd2 {[%clk 0:00:30.4]} 48...
Na4 {[%clk 0:00:39.8]} 49. f4 {[%clk 0:00:25.7]} 49... Nb2 {[%clk 0:00:33.2]}
50. Nf3 {[%clk 0:00:26.3]} 50... Nd3 {[%clk 0:00:32.1]} 51. b5 {[%clk
0:00:22.3]} 51... Nxf4 {[%clk 0:00:30.4]} 52. a4 {[%clk 0:00:23.7]} 52... Kc5
{[%clk 0:00:29.6]} 53. Ne5 {[%clk 0:00:24.9]} 53... d4 {[%clk 0:00:28.9]} 54.
Nd7+ {[%clk 0:00:21.3]} 54... Kd6 {[%clk 0:00:26.8]} 55. Nb6 {[%clk 0:00:22.4]}
55... c3+ {[%clk 0:00:25.5]} 56. Kc2 {[%clk 0:00:23.7]} 56... Nd5 {[%clk
0:00:20.9]} 57. Nc4+ {[%clk 0:00:24.5]} 57... Kc5 {[%clk 0:00:22]} 58. Ne5
{[%clk 0:00:25]} 58... Nb4+ {[%clk 0:00:22.8]} 59. Kb3 {[%clk 0:00:25.4]} 59...
c2 {[%clk 0:00:22.9]} 60. Kb2 {[%clk 0:00:26.8]} 60... d3 {[%clk 0:00:22.5]} 61.
Nf3 {[%clk 0:00:27.5]} 61... Na2 {[%clk 0:00:22.3]} 62. Kxa2 {[%clk 0:00:23.5]}
62... c1=Q {[%clk 0:00:23.4]} 63. Kb3 {[%clk 0:00:23.7]} 63... Qd1+ {[%clk
0:00:23.7]} 0-1

[Event "*** Titled Tuesday Blitz"]
[Site "Chess.com"]
[Date "2018.07.03"]
[Round "7"]
[White "olksuna"]
[Black "W_Amadeus"]
[Result "0-1"]
[WhiteElo "2462"]
[BlackElo "2589"]
[TimeControl "180+2"]
[EndTime "14:32:51 PDT"]
[Termination "W_Amadeus won by checkmate"]

1. e4 {[%clk 0:03:01.9]} 1... e5 {[%clk 0:03:00.7]} 2. Nf3 {[%clk 0:03:01.6]}
2... Nc6 {[%clk 0:03:01.9]} 3. Bc4 {[%clk 0:03:02.9]} 3... Nf6 {[%clk
0:03:02.7]} 4. d3 {[%clk 0:03:02.8]} 4... Be7 {[%clk 0:03:02.4]} 5. O-O {[%clk
0:03:03.6]} 5... O-O {[%clk 0:03:01.8]} 6. a4 {[%clk 0:03:04.9]} 6... d6 {[%clk
0:03:01.1]} 7. Re1 {[%clk 0:03:00.8]} 7... Kh8 {[%clk 0:03:00.1]} 8. Nc3 {[%clk
0:02:57.1]} 8... Ng8 {[%clk 0:02:55.1]} 9. d4 {[%clk 0:02:57.6]} 9... Bf6 {[%clk
0:02:28.7]} 10. dxe5 {[%clk 0:02:45.9]} 10... Nxe5 {[%clk 0:02:23.2]} 11. Be2
{[%clk 0:02:40.4]} 11... Nxf3+ {[%clk 0:02:17.3]} 12. Bxf3 {[%clk 0:02:42.3]}
12... Ne7 {[%clk 0:02:18.8]} 13. Nd5 {[%clk 0:02:37.8]} 13... Nxd5 {[%clk
0:02:17.5]} 14. exd5 {[%clk 0:02:39.7]} 14... Bf5 {[%clk 0:02:10.5]} 15. c3
{[%clk 0:02:39.9]} 15... Re8 {[%clk 0:02:03.7]} 16. Be3 {[%clk 0:02:38.7]} 16...
a5 {[%clk 0:02:00.1]} 17. Qb3 {[%clk 0:02:29.3]} 17... b6 {[%clk 0:02:00.5]} 18.
Qc4 {[%clk 0:02:29.9]} 18... Qd7 {[%clk 0:01:55]} 19. Bd4 {[%clk 0:02:24.3]}
19... Bxd4 {[%clk 0:01:38.6]} 20. Qxd4 {[%clk 0:02:26.2]} 20... Rxe1+ {[%clk
0:01:39.5]} 21. Rxe1 {[%clk 0:02:26.3]} 21... Re8 {[%clk 0:01:41]} 22. Kf1
{[%clk 0:02:14.4]} 22... Bc2 {[%clk 0:01:16.4]} 23. Bd1 {[%clk 0:02:08]} 23...
Bxd1 {[%clk 0:01:07]} 24. Qxd1 {[%clk 0:02:05.4]} 24... Rxe1+ {[%clk 0:01:01.2]}
25. Kxe1 {[%clk 0:02:04.9]} 25... Qf5 {[%clk 0:00:53.7]} 26. f3 {[%clk
0:01:53.4]} 26... h6 {[%clk 0:00:45.5]} 27. Kf2 {[%clk 0:01:45.6]} 27... Qf4
{[%clk 0:00:25.4]} 28. g3 {[%clk 0:01:40.1]} 28... Qc4 {[%clk 0:00:25.4]} 29. g4
{[%clk 0:01:21.5]} 29... Kg8 {[%clk 0:00:24]} 30. Kg3 {[%clk 0:01:21.2]} 30...
g5 {[%clk 0:00:20.3]} 31. Qd2 {[%clk 0:01:11.7]} 31... Qf1 {[%clk 0:00:20.8]}
32. Qe3 {[%clk 0:01:11.3]} 32... Qb1 {[%clk 0:00:18.1]} 33. h4 {[%clk
0:01:08.7]} 33... gxh4+ {[%clk 0:00:13.5]} 34. Kxh4 {[%clk 0:01:08.8]} 34...
Qxb2 {[%clk 0:00:14.7]} 35. Kh3 {[%clk 0:00:53.8]} 35... Qa1 {[%clk 0:00:12.2]}
36. Kg2 {[%clk 0:00:48.2]} 36... Qxa4 {[%clk 0:00:11.1]} 37. Qxh6 {[%clk
0:00:43.6]} 37... Qc2+ {[%clk 0:00:11.3]} 38. Kg3 {[%clk 0:00:39.4]} 38... Qxc3
{[%clk 0:00:12.1]} 39. Qg5+ {[%clk 0:00:40.4]} 39... Kf8 {[%clk 0:00:11.5]} 40.
Qd8+ {[%clk 0:00:40.9]} 40... Kg7 {[%clk 0:00:11.1]} 41. Qg5+ {[%clk 0:00:42.5]}
41... Kh8 {[%clk 0:00:10.6]} 42. Qh6+ {[%clk 0:00:38.6]} 42... Kg8 {[%clk
0:00:11.5]} 43. Qg5+ {[%clk 0:00:39.1]} 43... Qg7 {[%clk 0:00:10.3]} 44. Qd8+
{[%clk 0:00:39.7]} 44... Kh7 {[%clk 0:00:09.5]} 45. Qxc7 {[%clk 0:00:32.8]}
45... Qe5+ {[%clk 0:00:10.4]} 46. Kh4 {[%clk 0:00:23.7]} 46... Qh2+ {[%clk
0:00:08.7]} 47. Kg5 {[%clk 0:00:24.3]} 47... Qe5+ {[%clk 0:00:05.3]} 48. Kh4
{[%clk 0:00:25.2]} 48... Qxd5 {[%clk 0:00:06.6]} 49. Qxb6 {[%clk 0:00:25.9]}
49... a4 {[%clk 0:00:03.8]} 50. Qb1+ {[%clk 0:00:25.5]} 50... Kg8 {[%clk
0:00:03.1]} 51. Qb8+ {[%clk 0:00:24.9]} 51... Kg7 {[%clk 0:00:04.1]} 52. Qa7
{[%clk 0:00:18]} 52... Qe5 {[%clk 0:00:04.8]} 53. Qxa4 {[%clk 0:00:15.9]} 53...
Qh2+ {[%clk 0:00:05.7]} 54. Kg5 {[%clk 0:00:17.2]} 54... f6+ {[%clk 0:00:07]}
55. Kf5 {[%clk 0:00:16.6]} 55... Qe5# {[%clk 0:00:08.9]} 0-1